bitfinex-derivatives/quotes_SOLF0:USTF0_20220108
["timestamp","ask_amount","ask_price","bid_price","bid_amount"]
[1641665746812,7.38470627,135.47,135.34,1.846]
[1641665747012,27.66479,135.48,135.33,31.66479]
[1641665747212,27.66479,135.48,135.38,4.0]
[1641665747412,27.66479,135.48,135.34,1.845]
[1641665747614,27.66479,135.48,135.35,7.38279808]
[1641665747816,27.66479,135.48,135.36,1.846]
[1641665748018,7.38361576,135.49,135.4,4.0]
[1641665748216,27.66479,135.5,135.44,4.0]
[1641665748416,27.66479,135.5,135.4,1.845]
[1641665748817,27.66479,135.5,135.41,4.0]
[1641665749117,27.66479,135.5,135.42,5.845]
[1641665749317,27.66479,135.5,135.44,4.0]
[1641665749516,7.38143569,135.53,135.43,4.0]
[1641665749717,27.66479,135.54,135.5,4.0]
[1641665749917,27.66479,135.54,135.44,4.0]
[1641665749918,5.89591561,135.69,135.53,4.0]
[1641665750119,16.83591561,135.69,135.49,5.843]
[1641665750322,27.66479,135.68,135.6,27.66479]
[1641665750521,39.04267792,135.78,135.64,4.0]
[1641665750720,39.04267792,135.78,135.6,31.66479]
[1641665750922,7.36973985,135.74,135.61,1.842]
[1641665751125,7.36973985,135.74,135.63,4.0]
[1641665751322,5.89334791,135.75,135.64,4.0]
[1641665751526,7.36811082,135.77,135.63,1.842]
[1641665751721,7.06922386,135.8,135.63,1.842]
[1641665751922,5.89312711,135.76,135.63,1.842]
[1641665752122,5.89312711,135.76,135.59,1.842]
[1641665752322,27.66479,135.73,135.59,4.0]
[1641665752523,27.66479,135.73,135.58,34.96162249]
[1641665752721,7.36919676,135.72,135.6,5.842]
[1641665752923,35.03344375,135.73,135.6,1.842]
[1641665753123,7.36865375,135.73,135.59,1.842]
[1641665753322,27.66479,135.75,135.62,7.36593989]
[1641665753625,27.66479,135.75,135.63,1.842]
[1641665753823,27.66479,135.75,135.64,7.36485491]
[1641665754027,27.66479,135.75,135.66,4.0]
[1641665754222,27.66479,135.75,135.65,1.842]
[1641665754223,27.66479,135.75,135.7,4.0]
[1641665754425,27.66479,135.75,135.71,1.841]
[1641665754624,27.66479,135.79,135.71,1.841]
[1641665754829,27.66479,135.79,135.71,5.841]
[1641665755033,27.66479,135.79,135.74,4.0]
[1641665755325,27.66479,135.79,135.71,1.841]
[1641665755525,27.66479,135.79,135.72,7.36078908]
[1641665755725,4.0,135.94,135.73,5.841]
[1641665755928,7.36051818,135.88,135.74,7.3594348]
[1641665756228,27.66479,135.88,135.78,27.66479]
[1641665756425,27.66479,135.88,135.79,4.0]
[1641665756626,27.66479,135.88,135.8,5.84]
[1641665756825,7.35672773,135.95,135.82,4.0]
[1641665757225,4.0,135.98,135.83,1.839]
[1641665757425,7.35699834,135.94,135.83,1.839]
[1641665757625,4.0,135.99,135.8,1.839]
[1641665757826,4.0,135.97,135.79,1.839]
[1641665758029,4.0,135.92,135.79,1.839]
[1641665758227,4.0,135.91,135.79,1.839]
[1641665758426,4.0,135.86,135.77,1.84]
[1641665758627,7.36349913,135.82,135.71,1.84]
[1641665758827,4.0,135.85,135.71,1.84]
[1641665759025,7.36404139,135.81,135.74,4.0]
[1641665759228,7.36404139,135.81,135.71,1.841]
[1641665759427,29.44640754,135.88,135.7,9.20260188]
[1641665759626,5.88360751,135.98,135.67,4.0]
[1641665759826,4.0,135.96,135.79,4.0]
[1641665760126,5.88360751,135.98,135.81,4.0]
[1641665760327,27.66479,135.96,135.84,27.66479]
[1641665760530,27.66479,135.96,135.85,1.839]
[1641665761432,27.66479,135.96,135.9,4.0]
[1641665761630,11.0553279,136.07,135.88,4.0]
[1641665761831,11.05342713,136.11,135.89,1.838]
[1641665762032,11.05342713,136.11,135.9,4.0]
[1641665762230,7.05342713,136.11,135.94,4.0]
[1641665762430,27.66479,136.01,135.95,1.837]
[1641665762632,29.39231391,136.12,135.98,4.0]
[1641665762833,7.34484025,136.16,136.01,4.0]
[1641665763031,14.65931857,136.19,136.02,1.837]
[1641665763432,14.65931857,136.19,136.08,4.0]
[1641665763631,14.65931857,136.19,135.96,8.0]
[1641665763632,14.65931857,136.19,136.09,1.836]
[1641665763832,14.65931857,136.19,136.09,4.0]
[1641665764034,39.04267792,136.23,136.12,7.33837235]
[1641665764235,39.04267792,136.23,136.13,1.835]
[1641665764434,39.04267792,136.23,136.17,27.66479]
[1641665764636,27.66479,136.26,136.17,27.66479]
[1641665764934,4.0,136.37,136.17,25.89217604]
[1641665765139,4.0,136.37,136.18,1.834]
[1641665765334,7.33594982,136.32,136.18,1.834]
[1641665765536,7.33621891,136.32,136.2,7.33433569]
[1641665765734,7.33621891,136.32,136.18,1.834]
[1641665765735,4.0,136.32,136.18,1.834]
[1641665765937,4.0,136.33,136.18,5.834]
[1641665766135,4.0,136.35,136.18,1.834]
[1641665766439,27.66479,136.25,136.18,1.834]
[1641665766636,27.66479,136.27,136.17,1.835]
[1641665766936,27.66479,136.27,136.13,1.835]
[1641665767135,5.86491719,136.41,136.02,10.88]
[1641665767136,5.86491719,136.41,136.12,1.835]
[1641665767335,5.86491719,136.41,136.08,11.02]
[1641665767336,5.86520023,136.4,136.09,5.834]
[1641665767533,5.86520023,136.4,136.18,8.0]
[1641665767534,4.0,136.25,136.18,8.0]
[1641665767734,13.86520023,136.4,136.18,8.0]
[1641665768135,4.0,136.47,136.18,12.0]
[1641665768335,27.66479,136.37,136.3,27.66479]
[1641665768535,27.66479,136.37,136.24,1.833]
[1641665768735,27.66479,136.37,136.21,1.834]
[1641665769135,27.66479,136.39,136.2,5.834]
[1641665769339,27.66479,136.39,136.21,4.0]
[1641665769535,34.99778113,136.39,136.23,7.33299113]
[1641665769735,27.66479,136.39,136.24,9.16645344]
[1641665769935,27.66479,136.39,136.24,1.834]
[1641665770137,27.66479,136.39,136.23,1.833]
[1641665770340,27.66479,136.34,136.22,1.834]
[1641665770737,27.66479,136.34,136.15,4.0]
[1641665770738,27.66479,136.34,136.16,1.834]
[1641665770936,4.0,136.31,136.16,1.834]
[1641665771139,7.33918021,136.27,136.12,7.33891091]
[1641665771337,7.3381031,136.29,136.14,7.3381031]
[1641665771537,27.66479,136.34,136.12,1.835]
[1641665771737,31.66479,136.34,136.13,8.0]
[1641665771939,27.66479,136.34,136.14,1.835]
[1641665772137,4.0,136.28,136.13,8.0]
[1641665772338,27.66479,136.2,136.13,8.0]
[1641665772537,7.34672887,136.14,136.05,1.836]
[1641665772739,7.34645901,136.14,136.02,1.836]
[1641665772940,4.0,136.16,135.99,1.837]
[1641665773137,4.0,136.14,135.99,1.837]
[1641665773337,4.0,136.14,135.88,24.0]
[1641665773537,7.35158978,136.04,135.89,7.35158978]
[1641665773736,7.35158978,136.04,135.9,1.838]
[1641665773937,4.0,136.1,135.9,1.838]
[1641665774137,7.35294118,136.02,135.89,1.838]
[1641665774338,27.66479,135.98,135.89,1.838]
[1641665774538,27.66479,135.98,135.87,1.839]
[1641665774738,4.0,136.04,135.87,1.839]
[1641665774939,5.87894217,136.08,135.87,1.839]
[1641665775140,4.0,136.0,135.87,1.839]
[1641665775338,71.0619,136.14,135.87,1.839]
[1641665775539,5.87746992,136.12,135.87,1.839]
[1641665775739,4.0,135.96,135.87,1.839]
[1641665775939,4.0,135.95,135.85,1.839]
[1641665776139,4.0,135.91,135.77,1.839]
[1641665776339,27.66479,135.88,135.77,1.839]
[1641665777740,27.66479,135.9,135.77,1.839]
[1641665777939,4.0,135.95,135.77,1.839]
[1641665778139,4.0,136.12,135.89,4.0]
[1641665778340,27.66479,136.07,136.0,27.66479]
[1641665778541,4.0,136.18,135.98,27.66479]
[1641665778740,4.0,136.05,135.99,1.837]
[1641665778940,5.87574854,136.16,135.9,8.0]
[1641665779141,5.87574854,136.16,135.91,1.837]
[1641665779341,7.34996876,136.07,135.92,7.34996876]
[1641665779541,35.27804231,136.1,135.83,1.838]
[1641665779744,4.0,136.15,135.91,4.0]
[1641665779944,4.0,136.18,136.03,7.34376147]
[1641665780143,29.38043998,136.19,136.03,7.34376147]
[1641665780346,27.66479,136.19,136.04,27.66479]
[1641665780549,27.66479,136.19,136.05,7.34268302]
[1641665780748,27.66479,136.19,136.06,1.836]
[1641665780948,27.66479,136.19,136.07,7.34187438]
[1641665781248,7.34187438,136.22,136.07,7.34187438]
[1641665781448,46.38185813,136.27,136.12,7.33918021]
[1641665781648,7.33918021,136.27,136.12,7.33918021]
[1641665781849,4.0,136.32,136.16,7.33675715]
[1641665782048,7.33675715,136.32,136.16,7.33675715]
[1641665782251,7.33675715,136.32,136.14,29.34702862]
[1641665782252,7.33756466,136.3,136.15,7.33756466]
[1641665782449,31.66479,136.27,136.16,1.835]
[1641665782650,4.0,136.26,136.13,27.66479]
[1641665782851,4.0,136.24,136.13,35.66479]
[1641665783050,4.0,136.2,136.13,8.0]
[1641665783252,27.66479,136.27,136.13,8.0]
[1641665783452,4.0,136.23,136.13,8.0]
[1641665783752,27.66479,136.27,136.03,32.595]
[1641665783951,4.0,136.2,136.09,7.34079648]
[1641665784151,4.0,136.26,136.1,1.836]
[1641665784353,27.66479,136.22,136.15,27.66479]
[1641665784551,4.0,136.29,136.15,27.66479]
[1641665784754,7.33864162,136.28,136.13,27.66479]
[1641665784951,7.33675715,136.32,136.18,4.0]
[1641665785150,7.33487366,136.35,136.18,1.834]
[1641665785352,7.33460466,136.36,136.21,7.33406674]
[1641665785551,5.03825241,136.37,136.22,1.834]
[1641665785752,4.0,136.27,136.17,1.834]
[1641665786051,7.3381031,136.29,136.15,1.835]
[1641665786250,4.0,136.27,136.15,1.835]
[1641665786452,20.0,136.41,136.15,1.835]
[1641665786453,4.0,136.24,136.15,1.835]
[1641665786654,4.0,136.2,136.04,1.835]
[1641665786852,4.0,136.15,135.99,5.836]
[1641665787053,7.34780852,136.11,135.98,1.837]
[1641665787454,7.34780852,136.11,135.97,7.34699875]
[1641665787653,7.34780852,136.11,135.97,9.18399875]
[1641665787854,9.87360454,136.21,135.97,1.837]
[1641665788054,5.87360454,136.21,135.92,20.0]
[1641665788254,4.0,136.13,135.96,4.0]
[1641665788454,27.66479,136.11,136.01,27.66479]
[1641665788655,27.66479,136.13,136.02,1.837]
[1641665789055,11.35402265,136.03,135.94,1.837]
[1641665789253,27.66479,136.13,135.94,1.837]
[1641665789254,4.0,136.01,135.94,1.837]
[1641665789455,4.0,135.95,135.84,1.838]
[1641665789654,4.0,135.96,135.81,1.839]
[1641665789856,4.0,135.94,135.8,39.04267792]
[1641665790056,5.8826354,136.0,135.8,39.04267792]
[1641665790255,5.88538286,135.93,135.8,39.04267792]
[1641665790454,27.66479,135.87,135.8,39.04267792]
[1641665790657,27.66479,135.87,135.78,27.66479]
[1641665790856,4.0,135.86,135.78,27.66479]
[1641665791055,27.66479,135.87,135.78,27.66479]
[1641665791255,5.88474557,135.95,135.78,27.66479]
[1641665791456,5.88199314,136.01,135.78,27.66479]
[1641665791655,4.0,136.04,135.81,4.0]
[1641665791856,4.0,136.05,135.82,1.839]
[1641665792059,5.03825241,136.02,135.82,5.839]
[1641665792259,5.03825241,136.02,135.82,1.839]
[1641665792459,27.66479,135.96,135.89,27.66479]
[1641665792658,5.03825241,136.02,135.89,27.66479]
[1641665792857,5.03825241,136.02,135.9,1.838]
[1641665793258,5.03825241,136.02,135.89,27.66479]
[1641665793559,10.91650734,136.1,135.89,27.66479]
[1641665793758,4.0,136.0,135.87,27.66479]
[1641665793960,4.0,136.0,135.83,29.4139275]
[1641665793961,4.0,135.98,135.9,25.07752235]
[1641665794161,5.88478294,135.95,135.9,24.21622235]
[1641665794560,55.32958,135.91,135.84,24.21622235]
[1641665794963,59.32958,135.91,135.79,39.04267792]
[1641665795362,4.0,135.9,135.79,39.04267792]
[1641665795563,4.0,135.9,135.72,15.32864888]
[1641665795761,51.80255716,135.91,135.72,19.32864888]
[1641665795963,51.80255716,135.91,135.72,15.32864888]
[1641665796564,27.66479,135.8,135.78,4.0]
[1641665796764,5.88622642,135.92,135.79,4.0]
[1641665796963,5.88622642,135.92,135.73,5.84]
[1641665797164,5.88622642,135.92,135.73,1.84]
[1641665797366,5.88622642,135.92,135.79,4.0]
[1641665797567,7.36133093,135.86,135.74,1.84]
[1641665797766,7.36133093,135.86,135.72,1.84]
[1641665798065,7.05879092,136.01,135.72,5.84]
[1641665798265,5.88395855,135.97,135.72,1.84]
[1641665798466,27.66479,135.85,135.78,27.66479]
[1641665798666,27.66479,135.87,135.78,27.66479]
[1641665798866,27.66479,135.87,135.78,31.66479]
[1641665799068,5.88514783,135.94,135.83,4.0]
[1641665799370,5.88514783,135.94,135.79,4.0]
[1641665799569,8.0,136.0,135.78,27.66479]
[1641665799768,8.0,136.0,135.84,29.09093212]
[1641665799769,0.8363644,135.93,135.84,29.09093212]
[1641665799967,0.8363644,135.93,135.9,4.0]
[1641665800168,0.8363644,135.93,135.92,4.0]
[1641665800368,5.03825241,136.07,135.92,4.0]
[1641665800567,32.70304241,136.07,135.98,4.0]
[1641665800767,27.66479,136.07,135.98,4.0]
[1641665800968,27.66479,136.07,136.05,4.0]
[1641665801168,27.66479,136.07,135.96,29.50179]
[1641665801369,27.66479,136.07,135.99,4.0]
[1641665801667,27.66479,136.07,135.96,27.66479]
[1641665801668,5.03825241,136.14,136.03,4.0]
[1641665801867,5.03825241,136.24,136.05,4.0]
[1641665802067,5.03825241,136.24,135.96,27.66479]
[1641665802068,5.87280569,136.23,136.01,1.836]
[1641665802269,7.34457053,136.17,136.06,8.0]
[1641665802467,27.66479,136.22,136.07,27.66479]
[1641665802668,7.34322221,136.2,136.07,27.66479]
[1641665802869,7.34430082,136.18,136.07,31.66479]
[1641665803068,27.66479,136.22,136.07,31.66479]
[1641665803268,7.34457053,136.17,136.03,1.836]
[1641665803468,7.34807848,136.11,136.01,1.836]
[1641665803667,5.87423802,136.19,135.99,4.0]
[1641665803866,7.34672887,136.13,135.99,4.0]
[1641665804068,35.26759702,136.14,135.95,1.837]
[1641665804270,7.35050902,136.06,135.95,7.34834846]
[1641665804470,27.66479,136.01,135.94,26.54579322]
[1641665804670,27.66479,136.03,135.96,4.0]
[1641665804871,27.66479,136.03,135.95,1.838]
[1641665805070,27.66479,136.03,135.94,26.54579322]
[1641665805271,27.66479,136.03,135.99,4.0]
[1641665805473,27.66479,136.03,135.94,1.838]
[1641665805674,27.66479,136.03,135.95,25.07097802]
[1641665805872,27.66479,136.03,135.95,29.07097802]
[1641665806171,27.66479,136.03,136.01,4.0]
[1641665806372,7.34672887,136.13,135.98,7.34672887]
[1641665806571,27.66479,136.11,136.07,4.0]
[1641665806772,27.66479,136.11,136.06,4.0]
[1641665806972,22.54479,136.11,136.02,5.837]
[1641665807171,12.38282294,136.17,136.02,9.18157053]
[1641665807574,7.34645901,136.14,136.02,1.837]
[1641665807775,7.34591934,136.15,136.01,27.66479]
[1641665807976,7.34699875,136.13,136.02,1.837]
[1641665808172,7.34861846,136.1,136.03,25.0570077]
[1641665808672,27.66479,136.05,135.96,15.32864888]
[1641665808872,7.35213028,136.04,135.96,15.32864888]
[1641665809073,7.35375225,136.0,135.98,4.0]
[1641665809275,35.01583936,136.05,135.96,15.32864888]
[1641665809476,27.66479,136.05,135.96,15.32864888]
[1641665809674,27.66479,136.05,135.98,4.0]
[1641665809875,7.35213028,136.03,135.99,4.0]
[1641665810076,7.35213028,136.03,135.93,1.838]
[1641665810077,35.01583936,136.05,135.95,4.0]
[1641665810376,5.03825241,136.15,136.03,4.0]
[1641665810581,27.66479,136.1,136.05,4.0]
[1641665810778,27.66479,136.1,136.07,4.0]
[1641665810978,35.01232857,136.12,136.07,4.0]
[1641665811178,7.34484025,136.17,136.11,4.0]
[1641665811378,5.03825241,136.18,136.09,4.0]
[1641665811579,5.03825241,136.18,136.08,4.0]
[1641665811780,5.03825241,136.18,136.09,1.836]
[1641665811980,5.03825241,136.18,136.08,4.0]
[1641665812182,7.34349183,136.19,136.09,1.836]
[1641665812379,5.87226355,136.24,136.04,1.836]
[1641665812580,27.66479,136.14,136.08,4.0]
[1641665812782,27.66479,136.14,136.1,4.0]
[1641665812983,27.66479,136.14,136.03,11.34376147]
[1641665813183,27.66479,136.14,136.04,4.0]
[1641665813384,27.66479,136.14,136.05,1.837]
[1641665813685,7.34807848,136.11,135.99,27.66479]
[1641665813887,27.66479,136.14,136.02,7.34430082]
[1641665813888,7.34726865,136.12,136.02,7.34430082]
[1641665814187,27.66479,136.14,136.03,5.837]
[1641665814385,27.66479,136.14,136.03,1.837]
[1641665814583,27.66479,136.14,136.1,4.0]
[1641665814783,12.65931401,136.13,136.09,4.0]
[1641665814983,12.65931401,136.13,136.03,1.837]
[1641665815186,12.65931401,136.13,136.02,27.66479]
[1641665815384,12.65931401,136.13,136.02,31.66479]
[1641665815584,12.65931401,136.13,136.02,27.66479]
[1641665815786,16.83569825,136.13,136.02,27.66479]
[1641665815983,16.83569825,136.13,136.03,4.0]
[1641665816184,24.182697,136.13,135.99,1.837]
[1641665816383,24.182697,136.13,136.0,4.0]
[1641665816584,27.66479,136.07,136.0,4.0]
[1641665816784,27.66479,136.09,135.98,17.16564888]
[1641665816986,27.66479,136.09,136.06,4.0]
[1641665817589,5.03825241,136.18,136.08,8.0]
[1641665817787,9.70958431,136.21,136.1,4.0]
[1641665817989,2.36690129,136.21,136.11,4.0]
[1641665818188,7.3429526,136.2,136.11,4.0]
[1641665818390,7.3429526,136.2,136.12,4.0]
[1641665818588,7.3429526,136.2,136.06,1.836]
[1641665818589,27.66479,136.22,136.14,4.0]
[1641665818791,47.49503613,136.3,136.14,4.0]
[1641665818792,27.49503613,136.3,136.14,4.0]
[1641665818989,27.49503613,136.3,136.15,1.835]
[1641665819189,27.49503613,136.3,136.19,4.0]
[1641665819390,27.49503613,136.3,136.23,4.0]
[1641665819589,27.49503613,136.3,136.22,4.0]
[1641665819789,7.34133539,136.23,136.14,4.0]
[1641665819989,7.34268302,136.21,136.11,31.66479]
[1641665820190,7.34106592,136.24,136.11,27.66479]
[1641665820393,7.34025764,136.25,136.12,1.835]
[1641665820590,7.34214391,136.22,136.11,27.66479]
[1641665820890,27.66479,136.24,136.04,1.836]
[1641665821092,7.34780852,136.12,136.03,58.98453696]
[1641665821290,5.87521842,136.17,136.03,58.98453696]
[1641665821491,5.87737371,136.12,136.03,58.98453696]
[1641665821690,7.35077918,136.06,135.96,4.0]
[1641665821890,5.87737371,136.12,135.96,4.0]
[1641665822290,5.87737371,136.12,135.97,4.0]
[1641665822491,27.66479,136.08,135.98,27.66479]
[1641665822690,27.66479,136.08,135.98,31.66479]
[1641665822691,7.35077918,136.06,135.98,31.66479]
[1641665822891,27.66479,136.08,135.98,27.66479]
[1641665823092,7.34888848,136.09,136.02,4.0]
[1641665823292,5.87499398,136.18,136.08,4.0]
[1641665823494,5.87499398,136.18,136.09,4.0]
[1641665823693,8.0,136.24,136.05,1.836]
[1641665823893,7.34457053,136.17,136.03,4.0]
[1641665824093,5.87280894,136.23,136.16,4.0]
[1641665824293,58.98453696,136.3,136.08,1.835]
[1641665824493,27.66479,136.26,136.14,27.66479]
[1641665824693,7.34079648,136.24,136.14,27.66479]
[1641665825094,5.87019173,136.29,136.17,4.0]
[1641665825393,7.33918021,136.27,136.18,4.0]
[1641665825793,7.33918021,136.27,136.16,4.0]
[1641665826193,7.33944954,136.27,136.2,4.0]
[1641665826395,29.35779817,136.3,136.17,7.33675715]
[1641665826594,29.35779817,136.3,136.23,31.66479]
[1641665826794,29.35779817,136.3,136.24,4.0]
[1641665826996,23.43211455,136.41,136.29,4.0]
[1641665827197,30.7637616,136.41,136.33,4.0]
[1641665827397,23.43211455,136.41,136.34,11.32761779]
[1641665827600,23.43211455,136.41,136.28,7.33057215]
[1641665827801,23.43211455,136.41,136.38,4.0]
[1641665828000,58.98453696,136.44,136.34,1.832]
[1641665828200,58.98453696,136.44,136.3,4.0]
[1641665828401,7.33406674,136.37,136.32,4.0]
[1641665828615,34.99805,136.38,136.29,27.66479]
[1641665829203,34.99805,136.38,136.25,4.0]
[1641665829601,29.33841866,136.39,136.29,4.0]
[1641665829801,7.32842329,136.47,136.32,7.32842329]
[1641665830203,7.32842329,136.47,136.38,4.0]
[1641665830401,20.0,136.52,136.33,1.832]
[1641665830603,55.32958,136.34,136.26,8.0]
[1641665831101,55.32958,136.34,136.19,5.832]
[1641665831303,7.33783387,136.3,136.22,4.0]
[1641665831502,7.33594982,136.33,136.29,4.0]
[1641665831704,5.8627712,136.46,136.3,1.834]
[1641665831901,5.86361793,136.44,136.3,5.834]
[1641665832102,5.86361793,136.44,136.32,4.0]
[1641665832301,24.14570862,136.45,136.3,7.32949756]
[1641665832502,7.33084085,136.43,136.38,4.0]
[1641665832703,7.33084085,136.43,136.39,27.66479]
[1641665832704,16.81621106,136.43,136.39,27.66479]
[1641665833103,4.16969623,136.43,136.4,1.832]
[1641665833303,16.81621106,136.46,136.41,4.0]
[1641665833503,16.81621106,136.46,136.4,4.0]
[1641665833706,16.81621106,136.54,136.45,4.0]
[1641665834006,16.81621106,136.54,136.5,4.0]
[1641665834208,16.81621106,136.54,136.46,4.0]
[1641665834406,16.81621106,136.54,136.47,1.831]
[1641665834606,16.81621106,136.58,136.53,55.32958]
[1641665834807,16.81621106,136.58,136.49,4.0]
[1641665835006,7.32412934,136.55,136.44,5.831]
[1641665835206,7.32547066,136.53,136.44,4.0]
[1641665835408,4.16497569,136.49,136.41,1.831]
[1641665835606,24.14087687,136.54,136.44,4.0]
[1641665835806,24.14087687,136.54,136.4,1.831]
[1641665836006,4.16969623,136.48,136.47,4.0]
[1641665836206,9.623e-05,136.48,136.47,4.0]
[1641665836406,7.32332479,136.57,136.47,5.831]
[1641665836608,7.32332479,136.57,136.53,27.66479]
[1641665836807,7.32332479,136.57,136.53,31.66479]
[1641665837006,9.623e-05,136.58,136.53,31.66479]
[1641665837207,58.98453696,136.72,136.57,4.0]
[1641665837408,29.27186242,136.69,136.64,4.0]
[1641665837607,66.29955836,136.72,136.64,4.0]
[1641665837809,4.16192757,136.71,136.61,4.0]
[1641665838013,7.31689471,136.69,136.59,4.0]
[1641665838309,7.31796561,136.67,136.55,1.829]
[1641665838510,33.43057719,136.71,136.55,4.0]
[1641665838511,7.31957254,136.64,136.55,4.0]
[1641665838709,27.66479,136.67,136.58,27.66479]
[1641665838909,4.16192757,136.68,136.58,27.66479]
[1641665839111,4.16192757,136.66,136.64,4.0]
[1641665839312,7.31528895,136.72,136.65,4.0]
[1641665839510,40.47106185,136.8,136.71,11.30700376]
[1641665839710,4.15969483,136.77,136.72,1.828]
[1641665840110,40.47106185,136.8,136.7,1.828]
[1641665840310,40.47106185,136.8,136.7,4.0]
[1641665840510,40.47106185,136.8,136.69,4.0]
[1641665840710,7.31261426,136.77,136.73,27.66479]
[1641665840911,7.31528895,136.74,136.62,1.828]
[1641665841110,7.31528895,136.74,136.61,4.0]
[1641665841311,29.26864962,136.71,136.57,5.829]
[1641665841511,2.85238669,136.73,136.53,1.829]
[1641665841713,29.28364874,136.64,136.53,1.829]
[1641665841911,29.28364874,136.64,136.5,1.83]
[1641665842111,7.32278852,136.58,136.47,1.83]
[1641665842311,29.29115407,136.6,136.49,4.0]
[1641665842511,2.85238669,136.57,136.46,1.831]
[1641665842711,2.85238669,136.57,136.47,27.66479]
[1641665842911,7.32493408,136.54,136.47,31.66479]
[1641665843111,2.85238669,136.56,136.47,27.66479]
[1641665843412,2.85238669,136.56,136.55,4.0]
[1641665843611,7.31823338,136.66,136.55,4.0]
[1641665843813,8.42282905,136.78,136.52,1.83]
[1641665844012,7.31689471,136.69,136.55,11.31609174]
[1641665844213,7.31689471,136.69,136.57,4.0]
[1641665844412,7.31689471,136.69,136.56,4.0]
[1641665844613,7.31689471,136.69,136.62,27.66479]
[1641665845216,7.3136839,136.75,136.62,27.66479]
[1641665845412,7.3136839,136.75,136.63,4.0]
[1641665845612,7.3136839,136.75,136.64,4.0]
[1641665845812,7.3136839,136.75,136.62,27.66479]
[1641665846212,7.31528895,136.72,136.63,4.0]
[1641665846613,7.31528895,136.72,136.62,27.66479]
[1641665846614,7.31528895,136.72,136.65,27.66479]
[1641665846816,7.31903681,136.66,136.57,1.829]
[1641665847016,4.16102035,136.63,136.53,4.0]
[1641665847215,7.31903681,136.66,136.53,4.0]
[1641665847415,7.31903681,136.66,136.49,4.0]
[1641665847615,7.31903681,136.66,136.57,4.0]
[1641665847816,7.31903681,136.66,136.56,4.0]
[1641665848016,7.3150214,136.72,136.61,4.0]
[1641665848216,7.31314904,136.76,136.65,4.0]
[1641665848416,7.31314904,136.76,136.66,4.0]
[1641665848616,7.31314904,136.76,136.73,27.66479]
[1641665848817,7.31314904,136.76,136.62,4.0]
[1641665848818,7.31421884,136.74,136.63,1.828]
[1641665849017,7.31421884,136.74,136.67,4.0]
[1641665849215,7.31421884,136.74,136.6,1.829]
[1641665849417,7.31154493,136.79,136.73,4.0]
[1641665849616,7.31127765,136.79,136.71,4.0]
[1641665849816,7.30967435,136.82,136.75,4.0]
[1641665850017,7.30967435,136.82,136.74,4.0]
[1641665850217,7.30833881,136.85,136.74,4.0]
[1641665850418,7.30887297,136.84,136.74,4.0]
[1641665850618,33.50860112,136.9,136.82,27.66479]
[1641665850818,7.30914008,136.83,136.8,27.66479]
[1641665851021,5.84594092,136.85,136.8,27.66479]
[1641665851322,40.47106185,137.01,136.83,4.0]
[1641665851518,40.47106185,137.01,136.8,27.66479]
[1641665851519,7.30513551,136.91,136.8,27.66479]
[1641665852024,7.30326821,136.94,136.8,27.66479]
[1641665852218,7.30326821,136.94,136.8,29.49079]
[1641665852621,15.08576584,137.0,136.93,55.32958]
[1641665853022,15.08576584,137.0,136.89,4.0]
[1641665853222,5.83915627,137.01,136.87,4.0]
[1641665853623,7.30220161,137.0,136.85,7.30220161]
[1641665853823,7.3046019,136.96,136.86,1.825]